bitfinex/quotes_ETHUSD_20250929
["timestamp","ask_amount","ask_price","bid_price","bid_amount"]
[1759153850250,0.24000384,4166.6,4165.0,0.4546]
[1759153850448,3.07966438,4167.0,4165.4,2.40067935]
[1759153850655,0.6798,4166.9,4165.3,3.388]
[1759153850877,2.3999808,4166.7,4165.3,3.388]
[1759153851055,17.39409977,4167.1,4165.1,0.2315]
[1759153851056,2.40054855,4165.8,4165.1,0.2315]
[1759153851379,2.40047101,4165.9,4165.2,3.388]
[1759153851563,3.0,4166.5,4165.2,3.388]
[1759153851743,0.36798,4166.4,4165.2,3.388]
[1759153851944,0.6798,4166.6,4165.2,3.388]
[1759153852149,2.40062512,4165.6,4165.2,3.388]
[1759153852457,0.6798,4166.2,4164.8,0.002]
[1759153852659,2.4008497,4165.2,4164.9,3.388]
[1759153852853,5.84722092,4166.5,4164.9,3.388]
[1759153852854,2.40091141,4165.1,4164.9,3.388]
[1759153853066,2.40070774,4165.5,4164.9,3.388]
[1759153853274,0.24007077,4165.5,4164.9,3.388]
[1759153853456,2.40079703,4165.3,4164.9,3.39]
[1759153853669,0.6798,4166.4,4164.9,3.39]
[1759153853865,2.40089426,4165.2,4165.0,3.388]
[1759153854178,2.40080435,4165.3,4165.1,3.388]
[1759153854363,2.40068156,4165.5,4165.1,3.388]
[1759153854570,0.4471,4165.4,4164.9,0.002]
[1759153854745,2.40096038,4165.0,4164.9,0.002]
[1759153855159,6.08076038,4165.0,4164.9,0.002]
[1759153855367,8.59892263,4165.0,4164.9,0.002]
[1759153855569,8.59892263,4165.0,4164.8,0.002]
[1759153855570,5.40101803,4164.9,4164.8,0.002]
[1759153855757,5.40101803,4164.9,4162.7,0.2315]
[1759153855758,2.40147931,4164.1,4162.7,0.2315]
[1759153856174,3.08127931,4164.1,4162.7,0.2315]
[1759153856776,3.08127931,4164.1,4162.2,0.2315]
[1759153857166,3.08127931,4164.1,4162.7,0.936]
[1759153857377,3.08127931,4164.1,4162.6,2.407]
[1759153857575,3.08127931,4164.1,4162.2,0.2315]
[1759153858538,2.40147931,4164.1,4163.1,0.2315]
[1759153858642,2.94162724,4164.1,4161.3,0.002]
[1759153858847,6.62142724,4164.1,4162.7,0.2315]
[1759153859082,6.08127931,4164.1,4162.7,0.2315]
[1759153859291,3.0,4164.1,4163.1,0.2315]
[1759153859496,2.51816225,4165.0,4163.5,0.2315]
[1759153859784,2.51816225,4165.0,4164.0,0.6881]
[1759153859785,2.40129469,4164.5,4164.0,0.6881]
[1759153860081,2.40124343,4164.6,4164.1,0.2315]
[1759153860292,2.40134198,4164.4,4164.0,3.389]
[1759153860581,2.40102838,4164.9,4164.5,0.12]
[1759153860785,0.68714279,4165.9,4164.2,0.2315]
[1759153860786,2.40096499,4165.0,4164.2,0.2315]
[1759153860948,0.4471,4165.5,4164.3,3.387]
[1759153861280,2.40078745,4165.3,4164.0,0.002]
[1759153861484,2.40110107,4164.8,4164.1,3.387]
[1759153861783,0.2327,4165.9,4164.5,2.40120209]
[1759153861984,0.30801342,4165.8,4164.8,2.40107273]
[1759153862189,0.6798,4166.8,4164.9,0.6861]
[1759153862345,2.40044349,4165.9,4165.0,0.2315]
[1759153862546,0.6798,4167.4,4165.1,0.4546]
[1759153862753,5.00473733,4169.0,4165.2,3.6185]
[1759153862754,0.2327,4168.1,4165.2,3.6185]
[1759153862977,0.12477,4167.9,4167.0,2.39978193]
[1759153863177,2.39939874,4167.8,4167.1,3.6185]
[1759153863348,2.52411536,4167.9,4167.1,3.6185]
[1759153863560,2.52411536,4167.9,4167.1,6.01822255]
[1759153863761,0.12477,4167.9,4167.1,6.01822255]
[1759153863959,2.39906876,4168.3,4167.1,3.6185]
[1759153864198,2.39881826,4168.8,4167.1,0.2315]
[1759153864348,5.68453733,4169.0,4167.2,3.387]
[1759153864685,5.00473733,4169.0,4167.9,2.39928981]
[1759153864848,5.00473733,4169.0,4167.5,0.4546]
[1759153865052,2.39883867,4168.7,4167.6,3.6185]
[1759153865248,5.45183733,4169.0,4167.7,3.387]
[1759153865594,3.0,4168.9,4167.7,3.387]
[1759153865751,5.68453733,4169.0,4167.8,3.386]
[1759153866101,2.3988888,4168.6,4167.8,3.386]
[1759153866313,2.39895359,4168.5,4167.8,3.386]
[1759153866509,3.0,4168.9,4167.6,0.2315]
[1759153866708,3.0,4168.9,4167.9,3.386]
[1759153866865,3.0,4168.9,4167.7,0.2315]
[1759153867071,3.0,4168.9,4167.5,2.39951052]
[1759153867267,3.0,4168.9,4167.6,4.0721]
[1759153867508,2.39888756,4168.6,4167.7,0.2315]
[1759153867804,2.39894935,4168.5,4167.7,0.2315]
[1759153868005,2.39894935,4168.5,4167.6,3.386]
[1759153868006,2.39900898,4168.4,4167.4,2.85416721]
[1759153868211,3.0,4168.9,4167.4,0.4546]
[1759153868512,2.39928981,4167.9,4166.7,0.6861]
[1759153868715,2.74078018,4167.8,4166.8,5.78491518]
[1759153868902,2.74078018,4167.8,4166.9,3.385]
[1759153868903,2.39942339,4167.7,4166.9,3.385]
[1759153869220,2.39942339,4167.7,4165.6,2.40061399]
[1759153869221,0.2279,4167.7,4166.1,0.2383]
[1759153869372,0.2279,4167.7,4166.3,2.40019739]
[1759153869714,0.2279,4167.7,4166.4,3.385]
[1759153869885,0.34142898,4167.8,4166.5,0.7132]
[1759153870084,1.015,4168.0,4167.8,2.39933403]
[1759153870291,1.015,4168.0,4166.5,0.02400096]
[1759153870292,1.015,4168.0,4167.9,6.49648981]
[1759153870812,1.015,4168.0,4167.9,3.23168981]
[1759153870974,1.015,4168.0,4167.9,6.61568981]
[1759153871578,1e-08,4168.0,4167.9,6.49648981]
[1759153871989,0.01636895,4169.6,4168.9,2.39871428]
[1759153872189,0.01636895,4169.6,4168.9,0.7132]
[1759153872411,0.01636895,4169.6,4168.9,3.384]
[1759153872711,2.39849211,4169.3,4168.9,3.384]
[1759153873010,2.39855935,4169.2,4168.9,3.383]
[1759153873215,0.01636895,4169.6,4168.9,3.383]
[1759153873394,2.41468131,4169.6,4168.9,3.383]
[1759153873583,0.01636895,4169.6,4168.9,4.0962]
[1759153873916,0.01636895,4169.6,4168.9,6.49491428]
[1759153874127,0.01636895,4169.6,4168.9,3.383]
[1759153874279,2.39843972,4169.4,4168.9,3.383]
[1759153874721,0.01636895,4169.6,4168.9,3.383]
[1759153874927,0.01636895,4169.6,4168.9,0.2269]
[1759153875222,0.01636895,4169.6,4168.9,3.383]
[1759153875402,2.39837761,4169.5,4168.7,2.39881977]
[1759153875720,0.4345,4169.5,4168.8,3.382]
[1759153875927,2.3985033,4169.3,4168.8,3.382]
[1759153876221,0.4345,4168.9,4167.8,0.2269]
[1759153876381,0.4345,4168.9,4167.9,3.382]
[1759153876382,2.39889708,4168.6,4167.9,3.382]
[1759153876577,5.50521106,4169.0,4167.9,3.382]
[1759153876806,5.50521106,4169.0,4168.0,3.382]
[1759153877006,5.50521106,4169.0,4168.1,3.382]
[1759153877352,5.00473733,4169.0,4168.2,2.39911712]
[1759153877513,5.00473733,4169.0,4168.2,2.8699032]
[1759153877823,5.00473733,4169.0,4168.3,3.6089]
[1759153877991,5.00473733,4169.0,4168.4,3.8518]
[1759153878186,5.00473733,4169.0,4168.4,3.87579002]
[1759153878386,5.00473733,4169.0,4168.9,2.39871428]
[1759153878605,5.00473733,4169.0,4168.9,3.09641428]
[1759153879328,5.00473733,4169.0,4168.9,0.6977]
[1759153879619,5.00473733,4169.0,4168.9,6.47741428]
[1759153879925,5.00473733,4169.0,4168.9,3.6079]
[1759153880082,5.00473733,4169.0,4168.9,2.39871428]
[1759153880417,5.00473733,4169.0,4168.9,3.6079]
[1759153880798,5.00473733,4169.0,4168.9,3.6069]
[1759153880983,5.00473733,4169.0,4168.9,2.62561428]
[1759153881198,5.00473733,4169.0,4168.9,6.00561428]
[1759153881614,5.00473733,4169.0,4168.9,6.12481428]
[1759153881836,5.00473733,4169.0,4168.9,3.7261]
[1759153882138,5.00473733,4169.0,4168.9,6.12481428]
[1759153882345,5.00473733,4169.0,4168.9,0.1192]
[1759153882540,5.00473733,4169.0,4168.9,5.89791428]
[1759153882705,5.00473733,4169.0,4168.9,3.4992]
[1759153882901,5.00473733,4169.0,4168.9,0.1192]
[1759153883101,5.00473733,4169.0,4168.9,3.4982]
[1759153883303,5.00473733,4169.0,4168.9,0.1192]
[1759153883304,8.57822139,4169.0,4168.9,0.1192]
[1759153883547,8.82032139,4169.0,4168.9,0.1192]
[1759153883746,8.82032139,4169.0,4168.9,3.379]
[1759153884322,6.42166464,4169.0,4168.9,3.379]
[1759153884522,5.00473733,4169.0,4168.9,3.379]
[1759153884723,5.00473733,4169.0,4168.9,3.4982]
[1759153884923,5.00473733,4169.0,4168.9,2.74481428]
[1759153885247,5.00473733,4169.0,4168.9,6.12381428]
[1759153885448,5.00473733,4169.0,4168.9,0.1192]
[1759153885647,5.00473733,4169.0,4168.9,5.89691428]
[1759153885854,3.0,4169.7,4169.5,2.3983691]
[1759153886014,0.73121728,4171.4,4170.2,2.39796652]
[1759153886214,0.73121728,4171.4,4171.3,2.39733416]
[1759153886559,0.72168239,4171.4,4171.3,6.47303416]
[1759153887325,0.005,4173.2,4171.4,0.792]
[1759153887652,0.0042,4173.2,4171.9,21.02327742]
[1759153888149,0.0042,4173.2,4172.0,0.6977]
[1759153888523,0.0042,4173.2,4172.1,3.6039]
[1759153888737,0.0042,4173.2,4170.6,1.2734443]
[1759153888960,0.0042,4173.2,4170.8,0.2269]
[1759153888961,0.6766,4173.1,4170.8,0.2269]
[1759153889165,3.0,4172.9,4170.8,0.2269]
[1759153889326,2.39658725,4172.6,4170.9,3.377]
[1759153889531,2.39739109,4171.3,4170.3,0.2269]
[1759153889726,0.6766,4171.8,4169.7,0.2269]
[1759153889938,0.2421,4171.7,4169.7,0.2269]
[1759153890158,0.80216,4171.6,4169.7,0.2269]
[1759153890357,2.39721922,4171.5,4169.8,3.376]
[1759153890555,2.39721922,4171.5,4169.3,2.39848288]
[1759153890556,3.6766,4171.4,4169.3,2.39848288]
[1759153890864,3.6766,4171.4,4169.0,2.86943541]
[1759153890865,21.02327742,4171.0,4169.0,0.4708]
[1759153891069,0.6766,4170.9,4169.4,3.376]
[1759153891238,0.36766,4171.6,4170.2,2.39791281]
[1759153891440,0.6766,4171.7,4170.3,3.376]
[1759153891441,0.4345,4171.7,4170.3,3.376]
[1759153891642,0.4345,4172.4,4170.4,4.0737]
[1759153891840,0.2421,4172.8,4170.5,3.11946992]
[1759153892167,0.2421,4172.8,4170.6,3.09543118]
[1759153892468,0.4345,4172.7,4170.7,0.6977]
[1759153892635,0.4345,4172.7,4170.8,0.2269]
[1759153892636,2.39697104,4172.0,4170.8,0.2269]
[1759153892837,0.2396971,4172.0,4170.8,0.2269]
[1759153893031,2.39658725,4172.6,4171.0,2.39745346]
[1759153893234,0.4345,4172.7,4170.9,3.375]
[1759153893434,0.2421,4172.8,4171.0,0.6977]
[1759153893630,0.4345,4172.7,4171.1,3.375]
[1759153893876,3.6766,4172.6,4170.4,0.2269]
[1759153894042,5.39730543,4172.5,4170.8,2.39760507]
[1759153894373,2.39730543,4172.5,4170.9,0.2269]
[1759153894535,0.6766,4172.9,4171.6,2.39711008]
[1759153894735,0.6766,4172.9,4170.7,2.39763984]
[1759153894736,0.6766,4172.9,4171.7,3.375]
[1759153894945,2.39688833,4172.1,4171.7,3.375]
[1759153895134,0.6766,4172.9,4171.7,3.375]
[1759153895359,3.07307239,4172.8,4171.8,3.375]
[1759153895558,2.39693192,4172.0,4171.9,3.374]
[1759153895746,2.39693192,4172.0,4171.1,2.39739741]
[1759153895948,0.30730724,4172.7,4170.9,0.2269]
[1759153895949,0.54940724,4172.7,4171.9,0.1192]
[1759153896181,2.39693192,4172.0,4171.9,0.1192]
[1759153896380,0.6766,4172.7,4171.8,3.374]
[1759153896584,0.6766,4172.7,4171.9,0.1192]
[1759153896760,2.39687447,4172.1,4172.0,3.374]
[1759153897162,2.39687447,4172.1,4172.0,3.4932]
[1759153897481,2.87623834,4172.1,4172.0,0.1192]
[1759153898200,0.1192,4173.0,4172.0,3.4932]
[1759153898493,3.07804487,4173.2,4172.0,3.4932]
[1759153898494,2.39630011,4173.1,4172.2,2.39680657]
[1759153898791,2.39635753,4173.0,4172.9,0.1192]
[1759153899193,0.0052,4173.2,4172.8,3.373]
[1759153899398,0.0052,4173.2,4172.9,0.1192]
[1759153899597,2.40144271,4173.2,4172.9,0.1192]
[1759153899908,2.39635753,4173.0,4172.9,0.1192]
[1759153900092,0.0052,4173.2,4172.9,0.1192]
[1759153900093,2.40146031,4173.2,4172.9,0.1192]
[1759153900304,2.40147734,4173.2,4172.9,0.1192]
[1759153900471,2.39635753,4173.0,4172.9,0.1192]
[1759153900661,0.0052,4173.2,4173.1,0.1192]
[1759153901282,0.0052,4173.2,4173.1,3.4922]
[1759153901662,0.0052,4173.2,4173.1,0.1192]
[1759153901861,2.40144269,4173.2,4173.1,0.1192]
[1759153902107,2.88120329,4173.2,4173.1,0.1192]
[1759153902659,3.0,4173.1,4171.8,0.2322]
[1759153902963,0.1192,4173.0,4172.3,0.1192]
[1759153903275,2.39712108,4171.7,4170.9,0.4707]
[1759153903475,0.1192,4172.6,4171.6,0.1192]
[1759153903706,2.88121723,4173.2,4170.7,0.2322]
[1759153903707,2.39728274,4171.4,4170.7,0.2322]
[1759153903906,2.39728274,4171.4,4170.8,3.371]
[1759153904094,2.39703165,4171.9,4171.3,0.1192]
[1759153904299,0.4579,4172.0,4171.3,0.1192]
[1759153904300,2.85485693,4172.0,4171.3,0.1192]
[1759153904520,0.2323,4172.1,4171.3,0.1192]
[1759153904521,2.39690181,4172.1,4171.3,0.1192]
[1759153904721,2.39687447,4172.1,4172.0,0.1192]
[1759153904926,2.39687447,4172.1,4169.5,0.46928443]
[1759153904927,3.08709202,4172.1,4170.7,0.2322]
[1759153905121,3.08709202,4172.1,4170.8,3.371]
[1759153905122,2.39744995,4171.1,4170.8,3.371]
[1759153905420,2.39739163,4171.2,4171.1,0.1192]
[1759153905620,0.2323,4172.6,4171.1,0.7029]
[1759153905819,3.0,4172.5,4172.1,0.1192]
[1759153906123,3.0,4172.5,4170.5,2.39774783]
[1759153906124,2.39681702,4172.2,4170.6,0.4707]
[1759153906422,0.6902,4172.1,4171.6,0.1192]
[1759153906721,2.39710429,4171.7,4171.6,0.1192]
[1759153906921,2.39750659,4171.0,4170.9,0.1192]
[1759153907219,2.39750659,4171.0,4169.8,0.2322]
[1759153907220,2.39743559,4171.2,4170.7,0.1192]
[1759153907407,2.7663,4172.5,4170.3,3.37]
[1759153907617,0.4579,4172.7,4171.1,2.39741029]
[1759153907618,2.39703304,4171.9,4171.1,2.39741029]
[1759153907811,3.6902,4172.7,4171.3,2.39733361]
[1759153908011,3.6902,4172.7,4171.3,3.37]
[1759153908012,3.0,4172.5,4171.3,3.37]
[1759153908211,0.6902,4172.7,4171.3,3.37]
[1759153908425,2.39704707,4171.8,4171.3,3.37]
[1759153908627,2.39711797,4171.7,4171.3,3.37]
[1759153908829,2.39668522,4172.5,4170.6,0.4707]
[1759153909016,2.39724436,4171.5,4170.7,2.39763667]
[1759153909328,0.2323,4171.7,4170.6,5.72972846]
[1759153909627,0.4579,4171.9,4170.6,3.332]
[1759153909827,0.6954,4173.2,4170.7,0.72687679]
[1759153910028,0.0052,4173.2,4172.0,2.39691827]
[1759153910232,2.39634316,4173.1,4172.1,3.37]
[1759153910407,0.0052,4173.2,4172.4,2.39665096]
[1759153910605,0.0052,4173.2,4169.6,0.2322]
[1759153910803,21.71347742,4173.1,4171.1,0.2322]
[1759153911032,3.0,4173.0,4171.2,0.4707]
[1759153911244,3.6902,4173.1,4171.3,0.2322]
[1759153911644,2.39668927,4172.5,4171.6,2.39715375]
[1759153911832,0.6902,4173.0,4171.7,3.369]
[1759153912036,2.39640796,4173.0,4172.2,2.39680795]
[1759153912347,2.40144724,4173.2,4172.2,2.62896682]
[1759153912645,0.0052,4173.2,4172.2,0.2322]
[1759153912849,0.0052,4173.2,4171.7,3.369]
[1759153913145,0.0052,4173.2,4171.9,0.7029]
[1759153913347,0.0052,4173.2,4172.8,2.39643945]
[1759153913647,0.0052,4173.2,4172.8,2.39647239]
[1759153913831,0.0052,4173.2,4172.9,0.7029]
[1759153914237,0.0052,4173.2,4172.9,0.2322]
[1759153914545,0.0052,4173.2,4173.0,0.2322]
[1759153914747,0.0052,4173.2,4172.7,3.369]
[1759153914971,0.0052,4173.2,4172.9,0.2322]
[1759153915250,0.0052,4173.2,4172.7,3.369]
[1759153915251,0.0052,4173.2,4173.1,2.39630011]
[1759153915448,0.0052,4173.2,4172.8,0.2322]
[1759153915746,0.0052,4173.2,4173.1,2.39630011]
[1759153916149,0.0052,4173.2,4173.1,3.12316311]
[1759153916350,0.0052,4173.2,4173.1,3.09920011]
[1759153916646,1e-08,4173.2,4173.1,3.09920011]
[1759153917014,1e-08,4173.2,4173.1,3.12316311]
[1759153917215,1e-08,4173.2,4173.1,3.09920011]
[1759153917462,1e-08,4173.2,4173.1,3.21840011]
[1759153917813,1e-08,4175.0,4174.9,2.39526695]
[1759153918019,3.0,4175.8,4174.9,4.09385266]
[1759153918244,3.0,4175.8,4175.0,0.2322]
[1759153918418,2.39493905,4175.5,4175.1,3.367]
[1759153918611,3.0,4175.8,4175.2,3.367]
[1759153918845,3.0,4175.8,4174.5,0.2322]
[1759153918846,0.6902,4175.7,4173.0,2.304]
[1759153919084,0.6902,4175.6,4173.5,0.2322]
[1759153919387,2.39561216,4174.3,4173.6,0.2144921]
[1759153919606,3.08750543,4175.6,4173.1,2.499]
[1759153919607,0.4579,4174.7,4173.1,2.499]
[1759153919753,2.39584548,4173.9,4173.1,2.499]
[1759153920081,0.4579,4174.2,4173.1,2.499]
[1759153920281,0.30857582,4174.1,4173.1,2.499]
[1759153920446,0.4579,4174.2,4173.1,2.499]
[1759153920655,21.02327742,4173.8,4173.1,2.499]
[1759153920878,21.02327742,4173.8,4170.8,2.39761598]
[1759153920879,2.39630011,4173.1,4170.8,2.39762039]
[1759153921218,2.39630011,4173.1,4170.6,2.304]
[1759153921219,3.0,4172.0,4170.6,3.366]
[1759153921484,3.0,4171.8,4170.6,3.366]
[1759153921703,0.4579,4171.9,4170.6,3.366]
[1759153921987,0.2323,4171.7,4170.6,3.366]
[1759153922192,2.39716176,4171.6,4170.6,3.366]
[1759153922355,2.39762615,4170.8,4170.6,3.366]
[1759153922550,2.39753907,4171.0,4170.6,3.366]
[1759153922746,2.39756654,4170.9,4170.6,3.366]
[1759153923076,0.4579,4171.5,4170.6,3.366]
[1759153923282,0.2323,4171.4,4170.6,3.366]
[1759153923484,2.39773653,4170.6,4170.5,0.002]
[1759153924184,6.08793653,4170.6,4170.5,0.002]
[1759153924988,3.792,4170.5,4169.1,3.365]
[1759153925160,2.39888949,4168.6,4168.0,0.002]
[1759153925366,3.08805152,4170.4,4168.1,0.7029]
[1759153925367,3.0,4169.6,4168.1,0.7029]
[1759153925669,2.3985994,4169.1,4168.1,0.7029]
[1759153925873,2.39854995,4169.2,4168.0,0.002]
[1759153926184,0.2323,4170.0,4168.1,0.7029]
[1759153926406,3.0,4170.5,4168.2,0.7029]
[1759153926606,3.0,4170.5,4168.1,2.39917468]
[1759153926607,0.4579,4170.6,4168.3,0.72689059]
[1759153926806,2.39806657,4170.1,4168.4,0.7029]
[1759153927008,0.6902,4170.1,4168.4,0.2322]
[1759153927172,2.39856437,4169.2,4168.0,2.4011927]
[1759153927372,0.4579,4169.6,4168.1,0.2322]
[1759153927609,0.2323,4172.6,4169.1,21.02327742]
[1759153927796,0.1192,4172.4,4170.8,0.1192]
[1759153927998,0.1192,4172.4,4171.7,0.1192]
[1759153928179,2.39681702,4172.2,4171.1,3.365]
[1759153928377,3.1192,4172.1,4171.4,0.1192]
[1759153928600,0.6902,4172.3,4171.1,3.365]
[1759153929078,0.7013,4173.1,4171.9,2.39697382]
[1759153929273,2.3964693,4172.9,4171.8,2.39704074]
[1759153929617,17.32150141,4173.9,4172.0,2.39693173]
[1759153929618,2.39639999,4173.0,4172.0,2.39693173]
[1759153929817,0.4561,4173.3,4172.0,3.365]
[1759153929818,0.7013,4173.3,4172.0,3.365]
[1759153930033,2.39624536,4173.2,4172.2,2.39680646]
[1759153930187,2.39493303,4175.5,4172.0,3.365]
[1759153930525,1.003,4176.1,4172.0,3.365]
[1759153930526,0.001,4173.1,4172.1,0.6999]
[1759153931025,0.001,4173.1,4172.3,2.39674934]
[1759153931221,0.001,4173.1,4172.1,0.6999]
[1759153931517,0.001,4173.1,4172.0,3.365]
[1759153931903,2.39642041,4172.9,4172.0,5.76192625]
[1759153932103,0.001,4173.1,4173.0,2.39635753]
[1759153932418,0.001,4173.1,4173.0,5.76135753]
[1759153932576,0.001,4173.1,4173.0,6.46125753]
[1759153932977,0.001,4173.1,4173.0,4.0649]
[1759153933177,0.001,4173.1,4173.0,6.46125753]
[1759153933620,0.001,4173.1,4173.0,4.0649]
[1759153934467,0.001,4173.1,4173.0,3.365]
[1759153934819,0.001,4173.1,4173.0,3.5961]
[1759153935163,0.001,4173.1,4173.0,3.365]
[1759153935525,0.001,4173.1,4173.0,4.05]
[1759153935729,0.001,4173.1,4173.0,3.5961]
[1759153935931,0.001,4173.1,4173.0,3.364]
[1759153936358,2.39730011,4173.1,4173.0,3.364]
[1759153936664,0.001,4173.1,4173.0,3.364]
[1759153936866,2.39730011,4173.1,4173.0,3.364]
[1759153937426,2.39650011,4173.1,4173.0,3.364]
[1759153937645,0.0002,4173.1,4173.0,3.364]
[1759153938584,0.0002,4173.1,4173.0,3.4832]
[1759153938950,0.0002,4173.1,4173.0,3.7143]
[1759153939385,0.0002,4173.1,4173.0,3.4832]
[1759153939587,0.0002,4173.1,4173.0,6.44535753]
[1759153940688,0.0002,4173.1,4173.0,4.049]
[1759153940874,0.0002,4173.1,4173.0,6.44535753]
[1759153941368,0.0002,4173.1,4173.0,3.5951]
[1759153941568,0.0002,4173.1,4172.4,0.685]
[1759153941780,0.0002,4173.1,4172.5,3.363]
[1759153942292,2.39635753,4173.0,4172.5,3.363]
[1759153942492,0.92255575,4172.9,4172.0,3.363]
[1759153942795,0.0002,4173.1,4170.0,2.398035]
[1759153942796,3.0,4172.7,4170.0,2.398035]
[1759153942994,23.38030778,4172.8,4169.9,0.2311]
[1759153942995,0.003,4172.4,4170.3,0.2311]
[1759153943159,0.003,4172.4,4170.4,0.4539]
[1759153943570,0.003,4172.4,4171.6,2.39710883]
[1759153943797,0.003,4172.4,4171.7,3.363]
[1759153943986,0.003,4172.4,4171.8,3.363]
[1759153944179,0.003,4172.4,4171.9,3.363]
[1759153944382,0.003,4172.4,4172.0,3.363]
[1759153944693,0.003,4172.4,4172.1,4.07196874]
[1759153944895,0.003,4172.4,4172.3,2.39675958]
[1759153945104,0.003,4172.4,4172.3,2.42072717]
[1759153945313,0.003,4172.4,4172.3,3.10572717]
[1759153945670,0.003,4172.4,4172.3,0.685]
[1759153945902,0.003,4172.4,4172.3,3.10572717]
[1759153946208,0.003,4172.4,4172.3,3.08175958]
[1759153946409,0.003,4172.4,4172.3,3.363]
[1759153946614,0.003,4172.4,4171.4,0.2311]
[1759153946784,0.003,4172.4,4171.5,3.363]
[1759153946985,0.003,4172.4,4172.3,2.39675958]
[1759153947189,0.003,4172.4,4172.3,3.363]
[1759153947385,0.003,4172.4,4172.3,3.5941]
[1759153947715,0.003,4172.4,4172.3,3.363]
[1759153948018,0.003,4172.4,4172.3,6.44475958]
[1759153948176,0.003,4172.4,4172.3,4.048]
[1759153948376,0.003,4172.4,4172.3,5.99085958]
[1759153948687,0.003,4172.4,4172.3,6.44475958]
[1759153948885,0.003,4172.4,4172.3,3.5941]
[1759153949110,0.004,4172.4,4172.3,5.99085958]
[1759153949313,0.004,4172.4,4172.3,3.363]
[1759153949814,0.004,4172.4,4172.3,3.4822]
[1759153950307,3.08360213,4172.4,4172.3,3.4822]
[1759153950511,2.40070213,4172.4,4172.3,3.4822]
[1759153950727,2.83770213,4172.4,4172.3,3.4822]
[1759153950889,3.36113227,4172.4,4172.3,3.4822]
[1759153951098,3.60703227,4172.4,4172.3,3.4822]
[1759153951404,3.60703227,4172.4,4172.3,0.1192]
[1759153951603,5.39675958,4172.3,4171.8,0.1192]
[1759153951922,2.39698764,4172.0,4171.4,2.798]
[1759153952090,2.39721922,4171.5,4171.4,2.9172]
[1759153952422,4.66678168,4171.9,4171.4,2.9172]
[1759153952423,2.2697923,4171.9,4171.4,0.1192]
[1759153952640,2.39705284,4171.8,4171.4,0.1192]
[1759153952839,2.39705284,4171.8,4170.9,3.362]
[1759153952840,2.39697615,4172.0,4170.9,3.362]
[1759153952997,2.39704683,4171.8,4171.7,0.1192]
[1759153953198,0.92260468,4171.8,4170.9,3.362]
[1759153953442,3.0,4171.5,4169.9,0.2311]
[1759153953597,3.0,4171.5,4169.9,3.362]
[1759153953598,2.39796232,4170.3,4169.9,3.362]
[1759153953796,3.0,4171.5,4169.9,5.76013166]
[1759153953797,0.437,4170.9,4169.9,5.76013166]
[1759153954038,0.2459,4171.0,4169.9,3.362]
[1759153954246,2.39786426,4170.4,4169.9,3.362]
[1759153954397,2.39780222,4170.5,4169.9,3.362]
[1759153954593,2.39763972,4170.8,4169.9,3.362]
[1759153954799,0.2459,4171.0,4169.9,3.362]
[1759153954999,2.39736034,4171.3,4170.2,2.3979261]
[1759153955249,3.0,4171.3,4169.9,4.047]
[1759153955394,2.39721922,4171.5,4169.9,0.2311]
[1759153955593,2.39763988,4170.8,4170.0,3.5931]
[1759153956136,0.437,4171.1,4170.0,3.362]
[1759153956366,0.2459,4172.0,4170.1,0.685]
[1759153956500,2.39704683,4171.8,4170.1,0.685]
[1759153956704,2.39786699,4170.4,4170.0,3.362]
[1759153956902,2.397914,4170.3,4170.0,3.362]
[1759153957225,0.2459,4171.2,4170.0,3.362]
[1759153957428,2.39802402,4170.1,4170.0,3.362]
[1759153957831,0.437,4170.8,4168.6,0.2311]
[1759153958030,2.39808232,4170.0,4168.7,3.362]
[1759153958233,2.39815129,4169.9,4168.8,2.62987182]
[1759153958423,2.28404166,4170.7,4169.3,2.39848339]
[1759153958626,0.2459,4171.2,4169.4,4.07098426]
[1759153958835,2.39744911,4171.1,4169.5,3.5931]
[1759153959021,2.39750659,4171.0,4169.5,3.5931]
[1759153959345,2.39777336,4170.6,4169.7,2.39820752]
[1759153959539,0.6963,4170.9,4169.5,3.362]
[1759153959716,17.30093539,4171.3,4169.5,3.362]
[1759153960048,0.004,4172.4,4171.0,2.39750659]
[1759153960266,0.004,4172.4,4171.8,2.39700403]
[1759153960441,0.004,4172.4,4171.9,5.78395926]
[1759153960617,0.004,4172.4,4172.3,2.39675958]
[1759153961245,0.004,4172.4,4172.3,3.09022717]
[1759153961426,0.004,4172.4,4172.3,3.06625958]
[1759153962516,0.0032,4172.4,4172.3,3.06625958]
[1759153963346,1e-08,4172.4,4172.3,3.18545958]
[1759153963716,1e-08,4172.4,4172.3,3.97745958]
[1759153964019,1.0,4173.0,4172.3,3.97745958]
[1759153964020,1e-08,4173.0,4172.9,2.39641496]
[1759153964221,1e-08,4173.0,4172.9,6.42891496]
[1759153966022,1e-08,4173.0,4172.9,7.22091496]
[1759153966420,1e-08,4173.0,4172.9,6.42891496]
[1759153966637,1e-08,4173.0,4172.9,6.42791496]
[1759153966928,1e-08,4173.0,4172.9,7.21991496]
[1759153967657,1e-08,4173.0,4172.9,3.06591496]
[1759153967868,1e-08,4173.0,4172.9,6.42991496]
[1759153968834,1e-08,4173.0,4172.9,5.99911496]
[1759153969039,1e-08,4173.0,4172.9,5.76041496]
[1759153969252,1e-08,4173.0,4172.9,3.364]
[1759153969452,1e-08,4173.0,4172.9,5.76041496]
[1759153969868,1e-08,4173.0,4172.9,3.364]
[1759153970339,1e-08,4173.0,4172.9,5.76041496]
[1759153970740,1e-08,4173.0,4172.9,3.364]
[1759153971636,1e-08,4173.0,4172.9,5.76041496]
[1759153971842,1e-08,4173.0,4172.9,3.364]